bitfinex/quotes_BTCUSD_20220405
["timestamp","ask_amount","ask_price","bid_price","bid_amount"]
[1649200465042,0.00010554,45839.0,45838.0,0.41734223]
[1649200465144,0.00010554,45839.0,45838.0,0.36734223]
[1649200465343,0.00010554,45839.0,45838.0,0.26734223]
[1649200465445,0.00010554,45839.0,45838.0,0.36734223]
[1649200466344,0.00010554,45839.0,45838.0,0.41734223]
[1649200466953,0.00010554,45839.0,45838.0,0.15]
[1649200467145,0.00010554,45839.0,45838.0,0.05]
[1649200467252,0.00010554,45839.0,45837.0,0.41734223]
[1649200470191,0.00010554,45839.0,45837.0,0.15]
[1649200470292,0.00010554,45839.0,45837.0,0.31734223]
[1649200470444,0.00010554,45839.0,45837.0,0.41734223]
[1649200471649,0.00010554,45839.0,45837.0,0.41118476]
[1649200472436,0.02370808,45841.0,45839.0,0.4]
[1649200472638,0.02370808,45841.0,45839.0,0.5]
[1649200472738,0.00045921,45840.0,45839.0,0.5]
[1649200472938,0.00045921,45840.0,45839.0,0.1]
[1649200473741,0.02370808,45841.0,45839.0,0.1]
[1649200473841,0.02370808,45841.0,45837.0,0.31118476]
[1649200473991,0.02370808,45841.0,45837.0,0.26734223]
[1649200474143,0.02370808,45841.0,45837.0,0.36734223]
[1649200475045,0.02370808,45841.0,45837.0,0.1]
[1649200475146,0.02370808,45841.0,45837.0,0.26734223]
[1649200476035,0.00013251,45840.0,45837.0,0.26734223]
[1649200476586,0.00013251,45840.0,45838.0,0.26734223]
[1649200476786,0.00013251,45840.0,45838.0,0.31734223]
[1649200476887,0.00013251,45840.0,45838.0,0.41734223]
[1649200477189,0.00013251,45840.0,45839.0,0.26734223]
[1649200478547,0.00013251,45840.0,45839.0,0.07172008]
[1649200478642,0.00013251,45840.0,45839.0,0.31724541]
[1649200478742,0.00013251,45840.0,45839.0,0.41724541]
[1649200478892,0.00013251,45840.0,45839.0,0.46084541]
[1649200479091,0.00013251,45840.0,45839.0,0.21532008]
[1649200479253,7.251e-05,45840.0,45839.0,0.21532008]
[1649200479793,7.251e-05,45840.0,45839.0,0.11532008]
[1649200479993,7.251e-05,45840.0,45839.0,0.43675461]
[1649200480197,7.251e-05,45840.0,45839.0,0.53675461]
[1649200481095,7.251e-05,45840.0,45839.0,0.21532008]
[1649200481296,7.251e-05,45840.0,45839.0,0.11532008]
[1649200487358,7.251e-05,45840.0,45839.0,0.07172008]
[1649200488867,7.251e-05,45840.0,45839.0,0.38375663]
[1649200488964,7.251e-05,45840.0,45839.0,0.07172008]
[1649200489563,7.251e-05,45840.0,45839.0,0.38374226]
[1649200489762,7.251e-05,45840.0,45839.0,0.48374226]
[1649200492698,0.01664424,45841.0,45840.0,0.39476429]
[1649200492796,0.01664424,45841.0,45840.0,0.54476429]
[1649200494000,0.01664424,45841.0,45840.0,0.96764157]
[1649200494731,0.01521776,45841.0,45840.0,0.96764157]
[1649200495332,0.01521776,45841.0,45840.0,0.57287728]
[1649200496483,0.01521776,45841.0,45840.0,0.15]
[1649200496683,0.01521776,45841.0,45840.0,0.05]
[1649200496786,0.01521776,45841.0,45839.0,0.46202218]
[1649200498306,0.01521776,45841.0,45839.0,0.15]
[1649200498506,0.01521776,45841.0,45839.0,0.05]
[1649200498609,0.01521776,45841.0,45838.0,0.4880883]
[1649200499958,0.01521776,45841.0,45839.0,0.41985064]
[1649200500057,0.01521776,45841.0,45838.0,0.4880883]
[1649200500160,0.01521776,45841.0,45838.0,0.3880883]
[1649200500259,0.01521776,45841.0,45839.0,0.41985024]
[1649200500461,0.01521776,45841.0,45839.0,0.51985024]
[1649200500662,0.01521776,45841.0,45839.0,0.1]
[1649200501514,0.01521776,45841.0,45838.0,0.4880883]
[1649200501616,0.01521776,45841.0,45838.0,0.3880883]
[1649200501737,0.01521776,45841.0,45838.0,0.4880883]
[1649200502835,0.01521776,45841.0,45840.0,0.2675092]
[1649200504640,0.01521776,45841.0,45838.0,0.46202218]
[1649200505041,0.01521776,45841.0,45840.0,0.26749665]
[1649200506743,0.01521776,45841.0,45839.0,0.40430925]
[1649200507595,0.01521776,45841.0,45840.0,0.26749547]
[1649200509289,0.01521776,45841.0,45840.0,0.28063074]
[1649200512350,0.01521776,45841.0,45840.0,0.01313527]
[1649200512551,0.0139724,45841.0,45840.0,0.01313527]
[1649200512650,0.01177798,45841.0,45840.0,0.01313527]
[1649200512751,0.00562052,45841.0,45840.0,0.01313527]
[1649200513787,0.00562052,45841.0,45840.0,0.0069778]
[1649200514090,0.00933897,45841.0,45840.0,0.0069778]
[1649200514290,0.01305742,45841.0,45840.0,0.0003863]
[1649200514539,0.01305742,45841.0,45840.0,0.0069778]
[1649200518274,0.01305742,45841.0,45840.0,0.38287746]
[1649200518472,0.01305742,45841.0,45840.0,0.17085528]
[1649200518625,0.00931613,45841.0,45840.0,0.58120865]
[1649200519829,2.613e-05,45841.0,45840.0,0.64211865]
[1649200519983,0.00019666,45843.0,45841.0,0.02605374]
[1649200520077,0.00019666,45843.0,45842.0,0.02193829]
[1649200520180,0.00078645,45854.0,45844.0,0.054495]
[1649200520278,0.00078645,45854.0,45845.0,0.065404]
[1649200520376,0.00078645,45854.0,45846.0,0.06387748]
[1649200520522,0.00078645,45854.0,45850.0,0.31190665]
[1649200520621,0.002,45855.0,45850.0,0.16942989]
[1649200520721,0.002,45855.0,45850.0,0.36302989]
[1649200520824,0.002,45855.0,45850.0,0.65193011]
[1649200520923,0.002,45855.0,45850.0,0.66284011]
[1649200521326,0.002,45855.0,45850.0,0.71733511]
[1649200521979,0.002,45855.0,45850.0,0.86973652]
[1649200521980,0.00051748,45853.0,45850.0,0.86973652]
[1649200522928,0.002,45855.0,45850.0,0.86973652]
[1649200523026,0.002,45855.0,45850.0,0.71733511]
[1649200523178,0.00051748,45853.0,45850.0,1.38353511]
[1649200523526,0.00051748,45853.0,45850.0,1.47111976]
[1649200523928,0.00051748,45853.0,45850.0,0.80491976]
[1649200524127,0.002,45855.0,45850.0,1.47111976]
[1649200524247,0.002,45855.0,45850.0,1.47983976]
[1649200524444,0.00051748,45853.0,45850.0,1.47983976]
[1649200524640,0.00051748,45853.0,45850.0,1.65793586]
[1649200524841,0.00051748,45853.0,45850.0,1.57035121]
[1649200525040,0.00051748,45853.0,45850.0,1.58137998]
[1649200525340,0.002,45855.0,45850.0,1.58137998]
[1649200525440,0.002,45855.0,45850.0,1.61387998]
[1649200525641,0.00049459,45853.0,45850.0,1.61387998]
[1649200525892,0.00049459,45853.0,45850.0,1.62047148]
[1649200525992,0.00049459,45853.0,45850.0,1.62085778]
[1649200526091,0.00049459,45853.0,45850.0,1.61213778]
[1649200526394,0.00049459,45853.0,45850.0,1.92385825]
[1649200526595,0.002,45855.0,45850.0,1.92385825]
[1649200526794,0.00047543,45853.0,45850.0,1.92385825]
[1649200527298,0.00047543,45853.0,45850.0,1.25765825]
[1649200527399,0.00047543,45853.0,45850.0,1.92385825]
[1649200527799,0.002,45855.0,45850.0,1.92385825]
[1649200528047,0.00047543,45853.0,45850.0,1.25765825]
[1649200528145,0.00047543,45853.0,45850.0,1.26637825]
[1649200528295,0.00047543,45853.0,45850.0,1.93257825]
[1649200528394,0.00047543,45853.0,45850.0,0.8907803]
[1649200528495,0.00047543,45853.0,45850.0,0.8820603]
[1649200528696,7.14867101,45851.0,45850.0,0.8820603]
[1649200528897,7.14110701,45851.0,45850.0,0.8820603]
[1649200529347,7.14110701,45851.0,45850.0,1.5482603]
[1649200529750,7.14110701,45851.0,45850.0,0.8820603]
[1649200530352,7.14110701,45851.0,45850.0,1.5482603]
[1649200530850,7.14110701,45851.0,45850.0,1.90161922]
[1649200531051,7.14110701,45851.0,45850.0,1.67743977]
[1649200531151,7.14110701,45851.0,45850.0,1.67743929]
[1649200532544,7.14110701,45851.0,45850.0,2.03900937]
[1649200532792,7.14110701,45851.0,45850.0,1.95146835]
[1649200532943,7.14110701,45851.0,45850.0,2.03861385]
[1649200533392,7.14110701,45851.0,45850.0,1.95146835]
[1649200534448,7.14110701,45851.0,45850.0,1.59825982]
[1649200534898,7.14110701,45851.0,45850.0,1.93208266]
[1649200535199,6.51578701,45851.0,45850.0,1.92105437]
[1649200535352,0.002,45855.0,45850.0,1.98657198]
[1649200535516,0.002,45855.0,45854.0,0.98872461]
[1649200535608,0.002,45855.0,45854.0,0.99962461]
[1649200535708,0.002,45855.0,45854.0,1.14322461]
[1649200535806,0.002,45855.0,45854.0,1.19361091]
[1649200535908,0.002,45855.0,45854.0,0.90436567]
[1649200536007,0.002,45855.0,45854.0,0.91095717]
[1649200536310,0.012,45859.0,45854.0,0.91095717]
[1649200536409,0.012,45859.0,45858.0,0.01102721]
[1649200536507,0.012,45859.0,45858.0,0.71417538]
[1649200536606,0.012,45859.0,45858.0,0.75777538]
[1649200536707,0.012,45859.0,45858.0,0.85777538]
[1649200537960,0.012,45859.0,45858.0,0.19157538]
[1649200538160,0.012,45859.0,45858.0,0.09157538]
[1649200538711,0.01080001,45859.0,45858.0,0.09157538]
[1649200539063,0.01080001,45859.0,45858.0,0.75777538]
[1649200539236,0.01080001,45859.0,45858.0,0.85777538]
[1649200540544,0.00794817,45859.0,45858.0,0.85777538]
[1649200540745,0.00794817,45859.0,45858.0,0.85838052]
[1649200541145,0.00794817,45859.0,45858.0,0.90876682]
[1649200541347,0.00794817,45859.0,45858.0,0.91535832]
[1649200541749,0.00794817,45859.0,45858.0,0.24915832]
[1649200541860,0.00794817,45859.0,45858.0,0.13813111]
[1649200542157,0.008023,45859.0,45858.0,0.13813111]
[1649200542249,0.008023,45859.0,45858.0,0.11208294]
[1649200542354,0.008023,45859.0,45858.0,0.06208294]
[1649200542449,0.008023,45859.0,45858.0,0.05118294]
[1649200542648,0.008023,45859.0,45858.0,0.00758294]
[1649200544393,0.008023,45859.0,45858.0,0.36209288]
[1649200544592,0.008023,45859.0,45858.0,0.51209288]
[1649200544791,0.008023,45859.0,45858.0,0.53814332]
[1649200545941,0.008023,45859.0,45858.0,0.53753818]
[1649200546542,0.00750568,45859.0,45858.0,0.53753818]
[1649200546643,0.00750568,45859.0,45858.0,0.54856659]
[1649200548594,0.00750568,45859.0,45858.0,0.54856635]
[1649200548845,0.00575628,45859.0,45858.0,0.54856635]
[1649200549749,0.00575628,45859.0,45858.0,0.49856635]
[1649200549949,0.00575628,45859.0,45858.0,0.54856635]
[1649200550046,0.00575628,45859.0,45858.0,0.59856635]
[1649200551900,0.00575628,45859.0,45858.0,0.49856635]
[1649200552652,0.00575628,45859.0,45858.0,0.48753818]
[1649200552755,0.00575628,45859.0,45858.0,0.50946611]
[1649200553956,0.00575628,45859.0,45858.0,0.53670602]
[1649200555756,0.00575628,45859.0,45858.0,0.50946611]
[1649200556056,0.00575628,45859.0,45858.0,0.53670602]
[1649200556409,0.00575628,45859.0,45858.0,0.50946611]
[1649200556915,0.00575628,45859.0,45858.0,0.55946611]
[1649200557012,0.00575628,45859.0,45858.0,0.60946611]
[1649200558740,0.00575628,45859.0,45858.0,0.93051018]
[1649200558841,0.00575628,45859.0,45858.0,1.59671018]
[1649200558996,0.00513409,45859.0,45858.0,1.59671018]
[1649200559491,0.00513409,45859.0,45858.0,0.93051018]
[1649200559593,0.00513409,45859.0,45858.0,0.56497231]
[1649200559693,0.00513409,45859.0,45858.0,0.89869947]
[1649200560054,0.00513409,45859.0,45858.0,0.56497231]
[1649200560442,0.00513409,45859.0,45858.0,0.50407231]
[1649200560543,0.00513409,45859.0,45858.0,0.55407231]
[1649200560644,0.00513409,45859.0,45858.0,0.23302824]
[1649200560843,0.00513409,45859.0,45858.0,0.13302824]
[1649200561041,0.00513409,45859.0,45858.0,0.08302824]
[1649200561143,0.00513409,45859.0,45858.0,0.03302824]
[1649200563149,0.00513409,45859.0,45858.0,0.37733924]
[1649200563248,0.00513409,45859.0,45858.0,0.52733924]
[1649200563450,0.00513409,45859.0,45858.0,0.21586775]
[1649200563548,0.00513409,45859.0,45858.0,0.22689592]
[1649200563652,0.00513409,45859.0,45858.0,0.21586775]
[1649200563803,0.00513409,45859.0,45858.0,0.27689532]
[1649200563901,0.00513409,45859.0,45858.0,0.28779484]
[1649200564302,0.00513409,45859.0,45858.0,0.18779484]
[1649200564600,0.00513409,45859.0,45858.0,0.50889124]
[1649200564698,0.00513409,45859.0,45858.0,0.60889124]
[1649200565994,0.00513409,45859.0,45858.0,0.63613109]
[1649200566092,0.00513409,45859.0,45858.0,1.30233109]
[1649200566241,0.00513409,45859.0,45858.0,1.27509124]
[1649200566544,0.00513409,45859.0,45858.0,0.60889124]
[1649200566644,0.00505926,45859.0,45858.0,0.90889124]
[1649200566845,0.00505926,45859.0,45858.0,0.91761024]
[1649200567144,0.00505926,45859.0,45858.0,1.57509124]
[1649200567445,0.00505926,45859.0,45858.0,0.90889124]
[1649200567750,0.00505926,45859.0,45858.0,1.57509124]
[1649200568247,0.00505926,45859.0,45858.0,1.52509124]
[1649200568948,0.00455334,45859.0,45858.0,1.52509124]
[1649200569503,0.00455334,45859.0,45858.0,1.57509124]
[1649200570649,0.00235334,45859.0,45858.0,1.57509124]
[1649200571802,0.00235334,45859.0,45858.0,1.62509124]
[1649200574591,0.00235334,45859.0,45858.0,1.63380924]
[1649200574797,0.00235334,45859.0,45858.0,1.62417688]
[1649200574891,0.00235334,45859.0,45858.0,0.94925888]
[1649200575944,0.00235334,45859.0,45858.0,1.56545888]
[1649200576746,0.00235334,45859.0,45858.0,1.65229108]
[1649200576896,0.00235334,45859.0,45858.0,1.60229108]
[1649200577297,0.00235334,45859.0,45858.0,0.93609108]
[1649200578899,0.00129038,45859.0,45858.0,0.93609108]
[1649200580402,3.538e-05,45861.0,45859.0,0.45]
[1649200580550,0.0018627,45868.0,45860.0,0.33423424]
[1649200580644,0.01,45874.0,45861.0,0.03423424]
[1649200580745,0.01,45874.0,45861.0,0.33423424]
[1649200580843,0.01,45874.0,45861.0,0.44082574]
[1649200580946,0.01,45874.0,45861.0,0.44121204]
[1649200581045,0.01,45874.0,45861.0,0.49121204]
[1649200581747,0.01,45874.0,45861.0,0.81230844]
[1649200581997,0.00019597,45864.0,45861.0,0.76230844]
[1649200582997,0.01,45874.0,45861.0,0.76230844]
[1649200583298,0.00019597,45864.0,45861.0,0.76230844]
[1649200583499,0.00019597,45864.0,45861.0,0.72946893]
[1649200583697,0.00019597,45864.0,45861.0,0.76691489]
[1649200584242,0.01,45874.0,45861.0,0.76691489]
[1649200584444,0.00050096,45864.0,45861.0,0.76691489]
[1649200584948,0.00050096,45864.0,45861.0,0.85396257]
[1649200585346,0.01,45874.0,45861.0,0.85396257]
[1649200585650,0.00047238,45864.0,45861.0,0.85396257]
[1649200586198,0.00047238,45864.0,45861.0,0.85456769]
[1649200586600,0.01,45874.0,45861.0,0.76752001]
[1649200586803,0.00047238,45864.0,45861.0,0.85458525]
[1649200587751,0.01,45874.0,45861.0,0.85458525]
[1649200587991,0.00047238,45864.0,45861.0,0.85458525]
[1649200588945,0.00047238,45864.0,45861.0,0.55458525]
[1649200589045,0.00180001,45862.0,45861.0,0.55458525]
[1649200589144,0.00180001,45862.0,45861.0,0.46752001]
[1649200591351,0.00180001,45862.0,45861.0,0.46691489]
[1649200591650,0.00180001,45862.0,45861.0,0.14581849]
[1649200591794,0.00180001,45862.0,45861.0,0.04581849]
[1649200592444,0.00186355,45862.0,45861.0,0.04581849]
[1649200592594,0.00186355,45862.0,45861.0,0.36696293]
[1649200592795,0.00186355,45862.0,45861.0,0.46696293]
[1649200594451,0.00180001,45862.0,45861.0,0.46696293]
[1649200594753,0.00180001,45862.0,45861.0,0.76696293]
[1649200595352,0.00180001,45862.0,45861.0,0.85402817]
[1649200596198,0.00180001,45862.0,45861.0,1.14879545]
[1649200597950,0.00180001,45862.0,45861.0,1.14879525]
[1649200599004,0.00161098,45862.0,45861.0,1.14879525]
[1649200604701,1.098e-05,45862.0,45861.0,1.14879525]
[1649200604801,1.098e-05,45862.0,45861.0,0.85402797]
[1649200604902,1.098e-05,45862.0,45861.0,0.89762797]
[1649200606454,0.01,45874.0,45861.0,0.89762797]
[1649200606554,0.0054767,45874.0,45867.0,0.31197949]
[1649200606655,0.0054767,45874.0,45868.0,0.31197949]
[1649200607002,0.0054767,45874.0,45869.0,0.0003863]
[1649200607103,0.0054767,45874.0,45869.0,0.0069778]
[1649200609713,0.05997348,45874.0,45869.0,0.0069778]
[1649200610852,0.06047141,45874.0,45869.0,0.0069778]
[1649200611752,0.2,45873.0,45869.0,0.0069778]
[1649200612054,0.2,45873.0,45869.0,0.0065915]
[1649200612155,0.2,45873.0,45868.0,0.00060497]
[1649200612255,0.2,45873.0,45871.0,0.0003863]
[1649200612256,0.254502,45873.0,45871.0,0.0003863]
[1649200612355,0.0007726,45869.0,45868.0,0.00060497]
[1649200612455,0.0007726,45869.0,45864.0,0.41197949]
[1649200612559,0.29138743,45869.0,45864.0,0.41197949]
[1649200612906,0.34589034,45869.0,45864.0,0.41197949]
[1649200613208,0.34639487,45869.0,45864.0,0.41197949]
[1649200613613,0.34639487,45869.0,45866.0,0.26743674]
[1649200614013,0.321579,45868.0,45864.0,0.26743674]
[1649200614274,0.321579,45868.0,45863.0,0.26743674]
[1649200614368,0.37897921,45869.0,45856.0,0.31197949]
[1649200614468,0.321579,45868.0,45859.0,0.00050463]
[1649200614618,0.00050453,45868.0,45859.0,0.00050463]
[1649200614717,0.22432945,45860.0,45859.0,0.00050463]
[1649200615420,0.22432945,45860.0,45855.0,0.31197949]
[1649200615421,0.22381213,45860.0,45855.0,0.31197949]
[1649200615569,0.22381213,45860.0,45854.0,0.31197949]
[1649200615672,0.22381213,45860.0,45857.0,0.00049628]
[1649200616669,0.22381213,45860.0,45854.0,0.41197949]
[1649200616769,0.22381213,45860.0,45854.0,0.1]
[1649200616875,0.22381213,45860.0,45856.0,0.00049629]
[1649200616980,0.10903189,45863.0,45856.0,0.00049629]
[1649200617079,0.05500439,45866.0,45856.0,0.00049629]
[1649200617523,0.05500439,45866.0,45861.0,0.0065915]
[1649200617820,0.05450821,45866.0,45861.0,0.0065915]
[1649200617995,0.24021868,45864.0,45861.0,0.0065915]
[1649200620107,0.24021868,45864.0,45861.0,0.0065315]
[1649200622481,0.24021868,45864.0,45859.0,0.00048051]
[1649200622682,0.24021868,45864.0,45857.0,0.054496]
[1649200622780,0.24021868,45864.0,45862.0,0.0065315]
[1649200627764,0.321579,45863.0,45862.0,0.00713658]
[1649200627865,0.05451146,45863.0,45862.0,0.00060508]
[1649200627967,0.37609046,45863.0,45862.0,0.00060508]
[1649200628064,0.05451146,45863.0,45862.0,0.00713658]
[1649200628166,0.37609046,45863.0,45862.0,0.00713658]
[1649200628264,0.05451146,45863.0,45862.0,0.00713658]
[1649200628469,0.37609046,45863.0,45862.0,0.00713658]
[1649200628618,0.05451146,45863.0,45862.0,0.00713658]
[1649200629021,0.24021868,45864.0,45862.0,0.00713658]
[1649200633148,0.24021868,45864.0,45862.0,0.00060508]
[1649200633246,0.321579,45863.0,45862.0,0.00060508]
[1649200633395,0.24021868,45864.0,45863.0,0.0065315]
[1649200633495,0.56179768,45864.0,45863.0,0.0065315]
[1649200634951,0.24021868,45864.0,45863.0,0.0065315]
[1649200635758,0.009701,45865.0,45863.0,0.0065315]
[1649200636103,0.00049697,45866.0,45863.0,0.0065315]
[1649200636204,0.009544,45865.0,45863.0,0.0065315]
[1649200637164,0.009465,45867.0,45863.0,0.0065315]
[1649200637264,0.00049697,45866.0,45863.0,0.0065315]
[1649200637364,0.009387,45865.0,45863.0,0.0065315]
[1649200637964,0.009387,45865.0,45863.0,0.00713658]
[1649200638415,0.009701,45867.0,45863.0,0.00060508]
[1649200638514,0.00049697,45866.0,45863.0,0.00060508]
[1649200638764,0.00049697,45866.0,45864.0,0.0065315]
[1649200639165,0.00049697,45866.0,45864.0,0.0610165]
[1649200639515,0.009701,45867.0,45864.0,0.0610165]
[1649200639615,0.009701,45867.0,45864.0,0.0065315]
[1649200639716,0.01019797,45867.0,45864.0,0.0065315]
[1649200640659,0.009701,45867.0,45864.0,0.0065315]
[1649200642465,0.009701,45867.0,45864.0,0.0610165]
[1649200642916,0.009701,45867.0,45864.0,0.0065315]
[1649200643118,0.009701,45867.0,45864.0,0.00713655]
[1649200643668,0.00960298,45867.0,45864.0,0.00713655]
[1649200643768,0.00960298,45867.0,45864.0,0.00060505]
[1649200644070,0.00960298,45867.0,45866.0,0.0065315]
[1649200644298,0.013063,45865.0,45864.0,0.00060505]
[1649200647203,0.013063,45865.0,45863.0,0.3]
[1649200650264,0.013063,45865.0,45863.0,0.30060507]
[1649200651565,0.013063,45865.0,45863.0,0.40060507]
[1649200651666,0.013063,45865.0,45864.0,0.3]
[1649200652312,0.01254568,45865.0,45864.0,0.3]
[1649200653463,0.01254568,45865.0,45864.0,0.30060507]
[1649200653763,0.01254568,45865.0,45864.0,0.40060507]
[1649200655537,0.01254568,45865.0,45864.0,0.10060507]
[1649200655739,0.01254568,45865.0,45864.0,0.00060507]
[1649200658998,0.01254568,45865.0,45864.0,0.30060507]
[1649200659277,0.01254568,45865.0,45864.0,0.40060507]
[1649200660223,0.01254568,45865.0,45864.0,0.10060507]
[1649200660324,0.01254568,45865.0,45864.0,0.00060507]
[1649200663556,0.01254568,45865.0,45863.0,0.03270507]
[1649200664408,0.00754568,45865.0,45863.0,0.03270507]
[1649200671715,0.06204627,45865.0,45863.0,0.03270507]
[1649200672772,0.06204627,45865.0,45863.0,0.0321]
[1649200678908,0.06204627,45865.0,45861.0,0.41258456]
[1649200682105,0.06204627,45865.0,45862.0,0.33426332]
[1649200682306,0.06204627,45865.0,45862.0,0.1]
[1649200682556,0.06204627,45865.0,45862.0,0.41197949]
[1649200683510,0.06204627,45865.0,45862.0,0.1]
[1649200683809,0.06204627,45865.0,45861.0,0.41258456]
[1649200683911,0.06204627,45865.0,45861.0,0.31258456]
[1649200684008,0.06204627,45865.0,45861.0,0.41258456]
[1649200687306,0.06194371,45865.0,45861.0,0.41258456]
[1649200688908,0.06194371,45865.0,45861.0,0.41197949]
[1649200690180,0.06142639,45865.0,45861.0,0.41197949]
[1649200691534,0.06142639,45865.0,45861.0,0.1]
[1649200691735,0.06142639,45865.0,45860.0,0.41258456]
[1649200692539,0.06142639,45865.0,45860.0,0.31258456]
[1649200693211,0.06142639,45865.0,45860.0,0.00060507]
[1649200695416,0.06142639,45865.0,45860.0,0.31258456]
[1649200695513,0.00754568,45865.0,45860.0,0.31258456]
[1649200695717,0.00754568,45865.0,45860.0,0.00060507]
[1649200695813,0.00754568,45865.0,45860.0,0.31258456]
[1649200696860,0.00754568,45865.0,45861.0,0.3]
[1649200697013,0.00754568,45865.0,45861.0,0.61197949]
[1649200697111,0.00754568,45865.0,45863.0,0.31197949]
[1649200697210,0.00754568,45865.0,45864.0,0.61197949]
[1649200697310,0.00754568,45865.0,45864.0,0.42228276]
[1649200697714,0.00754568,45865.0,45864.0,0.31920843]
[1649200697911,0.00754568,45865.0,45864.0,0.33023384]
[1649200698010,0.00754568,45865.0,45864.0,0.37383384]
[1649200698465,0.00754568,45865.0,45864.0,0.27383384]
[1649200698560,0.00754568,45865.0,45864.0,0.37383384]
[1649200698862,0.00754568,45865.0,45864.0,0.42831184]
[1649200699064,0.00754568,45865.0,45864.0,0.40602908]
[1649200699311,0.00754568,45865.0,45864.0,0.64602908]
[1649200699512,0.00754568,45865.0,45864.0,0.94602908]
[1649200700316,0.00754568,45865.0,45864.0,0.94593643]
[1649200700515,0.00754568,45865.0,45864.0,0.74910341]
[1649200702119,0.00754568,45865.0,45864.0,0.74970848]
[1649200702220,0.00754568,45865.0,45864.0,0.77575926]
[1649200702819,0.00754568,45865.0,45864.0,0.76473385]
[1649200702925,0.00754568,45865.0,45864.0,0.78665782]
[1649200703020,0.00754568,45865.0,45864.0,0.88177712]
[1649200703219,0.00754568,45865.0,45864.0,1.20275199]
[1649200703477,0.00049697,45867.0,45865.0,0.45]
[1649200703574,0.00037002,45867.0,45866.0,0.99949974]
[1649200703770,0.00037002,45867.0,45866.0,1.09949974]
[1649200703870,0.00037002,45867.0,45866.0,1.19461904]
[1649200703970,0.00037002,45867.0,45866.0,1.20551904]
[1649200704073,0.00037002,45867.0,45866.0,1.29911904]
[1649200704171,0.00037002,45867.0,45866.0,1.82061391]
[1649200704323,0.0007726,45869.0,45867.0,0.054468]
[1649200704426,0.0007726,45869.0,45868.0,0.37192397]
[1649200704524,0.0007726,45869.0,45868.0,0.81083835]
[1649200704623,0.0007726,45869.0,45868.0,0.91083835]
[1649200704924,0.0007726,45869.0,45868.0,1.00595765]
[1649200705273,0.0007726,45869.0,45868.0,1.67215765]
[1649200705377,0.0007726,45869.0,45868.0,1.72215765]
[1649200705577,0.0007726,45869.0,45868.0,3.16008074]
[1649200706628,0.0007726,45869.0,45868.0,2.09856636]
[1649200706726,0.0007726,45869.0,45868.0,1.79856636]
[1649200707327,0.0007726,45869.0,45868.0,1.74856636]
[1649200709324,0.0007726,45869.0,45868.0,1.65344706]
[1649200709932,0.0007726,45869.0,45868.0,1.74802859]
[1649200710131,0.0007726,45869.0,45868.0,1.69802859]
[1649200710329,0.0007726,45869.0,45868.0,1.60405209]
[1649200710778,0.0007726,45869.0,45868.0,1.69862466]
[1649200710981,0.0007726,45869.0,45868.0,1.75310066]
[1649200713765,0.0007726,45869.0,45868.0,1.80310066]
[1649200714762,0.0007726,45869.0,45868.0,1.75310066]
[1649200715523,0.0007726,45869.0,45868.0,1.75249563]
[1649200717773,0.0007726,45869.0,45868.0,1.80249563]
[1649200717873,0.00532125,45874.0,45869.0,0.45]
[1649200717973,0.00532125,45874.0,45873.0,0.01102445]
[1649200718175,0.00532125,45874.0,45873.0,0.06549745]
[1649200720224,0.00532125,45874.0,45873.0,0.28345244]
[1649200721578,0.00532125,45874.0,45873.0,0.28405741]
[1649200723037,0.00532125,45874.0,45873.0,0.27303296]
[1649200723136,0.00532125,45874.0,45873.0,0.00101893]
[1649200723941,0.00505797,45874.0,45873.0,0.00101893]
[1649200726768,0.00505797,45874.0,45873.0,0.00041396]
[1649200728015,0.00454065,45874.0,45873.0,0.00041396]
[1649200734983,0.00454065,45874.0,45873.0,0.30041396]
[1649200735085,0.00454065,45874.0,45873.0,0.40041396]
[1649200735888,0.00454065,45874.0,45873.0,0.10041396]
[1649200736190,0.00454065,45874.0,45873.0,0.00041396]
[1649200751164,0.00446315,45874.0,45873.0,0.00041396]
[1649200765315,0.00394583,45874.0,45873.0,0.00041396]
[1649200774476,0.00394583,45874.0,45873.0,0.05488596]
[1649200778627,0.00394583,45874.0,45873.0,0.00041396]
[1649200780353,0.00394583,45874.0,45871.0,0.10060497]
[1649200780503,0.00394583,45874.0,45871.0,0.00060497]
[1649200780902,0.321579,45873.0,45871.0,0.00060497]
[1649200781056,0.16351677,45873.0,45871.0,0.00060497]
[1649200781153,0.00120994,45870.0,45867.0,0.008717]
[1649200781353,0.28736839,45868.0,45867.0,0.008717]
[1649200782308,0.28736839,45868.0,45863.0,0.05]
[1649200782408,0.10900868,45867.0,45863.0,0.05]
[1649200782707,0.10900868,45867.0,45859.0,0.211]
[1649200783032,0.10900868,45867.0,45859.0,0.261]
[1649200783822,0.34187137,45868.0,45861.0,0.00053403]
[1649200783923,0.05450429,45867.0,45861.0,0.00053403]
[1649200784826,0.05450429,45867.0,45859.0,0.261]
[1649200784977,0.05450429,45867.0,45862.0,0.00053402]
[1649200785981,0.2434258,45866.0,45852.0,0.3564937]
[1649200786086,0.2434258,45866.0,45851.0,0.06542833]
[1649200786182,0.2434258,45866.0,45862.0,0.00053402]
[1649200786183,0.109039,45863.0,45862.0,0.00053402]
[1649200786285,0.21807355,45863.0,45862.0,0.00053402]
[1649200786432,0.53965255,45863.0,45862.0,0.00053402]
[1649200786533,0.58965255,45863.0,45862.0,0.00053402]
[1649200787079,0.77664699,45863.0,45862.0,0.00053402]
[1649200787179,0.054521,45859.0,45849.0,0.0333]
[1649200787280,0.27573567,45852.0,45849.0,0.0333]
[1649200788331,0.33025938,45852.0,45849.0,0.0333]
[1649200788433,0.33025938,45852.0,45845.0,0.20022]
[1649200788536,0.33025938,45852.0,45844.0,0.002]
[1649200788631,0.33025938,45852.0,45848.0,0.00051267]
[1649200789432,0.27573567,45852.0,45848.0,0.00051267]
[1649200789533,0.27573567,45852.0,45844.0,0.26915979]
[1649200789681,0.27573567,45852.0,45845.0,0.26715979]
[1649200789784,0.27573567,45852.0,45848.0,0.00051267]
[1649200790034,0.009731,45860.0,45848.0,0.00051267]
[1649200790764,0.009748,45862.0,45847.0,0.054507]
[1649200791011,0.009698,45863.0,45852.0,0.00047659]
[1649200791111,0.321579,45862.0,45852.0,0.00047659]
[1649200791212,0.26613715,45856.0,45852.0,0.00047659]
[1649200791512,0.31613715,45856.0,45852.0,0.00047659]
[1649200792013,0.31613715,45856.0,45848.0,0.054507]
[1649200792264,0.31613715,45856.0,45852.0,0.00046195]
[1649200793168,0.31613715,45856.0,45851.0,0.054502]
[1649200793367,0.31613715,45856.0,45852.0,0.00046195]
[1649200794369,0.31613715,45856.0,45851.0,0.054502]
[1649200794569,0.31613715,45856.0,45852.0,0.00046195]
[1649200795569,0.31613715,45856.0,45851.0,0.054502]
[1649200795772,0.31613715,45856.0,45852.0,0.00046514]
[1649200796324,0.31613715,45856.0,45852.0,0.05496514]
[1649200796772,0.31613715,45856.0,45852.0,0.0545]
[1649200796977,0.31613715,45856.0,45852.0,0.05496514]